bitfinex/quotes_ETHUSD_20250620
["timestamp","ask_amount","ask_price","bid_price","bid_amount"]
[1750422480866,0.36669682,2554.1,2554.0,3.91541321]
[1750422481098,0.73339305,2554.1,2553.9,3.95464208]
[1750422481287,0.36669606,2554.0,2553.9,3.91549059]
[1750422481597,0.3667016,2554.0,2553.9,3.91549059]
[1750422481766,0.7958,2554.2,2553.9,3.91549059]
[1750422482166,0.7334029,2554.1,2553.9,3.91549059]
[1750422482368,0.36670145,2554.0,2553.9,3.91549059]
[1750422482570,0.36670064,2554.0,2553.9,3.91549059]
[1750422482823,0.36670028,2554.0,2553.9,3.91549059]
[1750422483101,0.36671254,2554.0,2553.9,3.91549059]
[1750422483461,0.7958,2554.2,2554.0,3.91539824]
[1750422483662,0.73338894,2554.1,2554.0,3.91539824]
[1750422483866,0.73338894,2554.1,2553.9,3.91551276]
[1750422484065,0.7958,2554.2,2553.9,3.91551276]
[1750422484066,0.36669781,2554.0,2553.9,3.91551276]
[1750422484468,0.36669678,2554.0,2553.9,3.91551276]
[1750422485172,0.36669199,2554.0,2553.9,3.91551276]
[1750422485702,0.3667241,2554.0,2553.9,3.91551276]
[1750422485892,0.36672665,2554.0,2553.9,3.91551276]
[1750422486290,0.3667308,2554.0,2553.9,3.91551276]
[1750422486811,0.36672349,2554.0,2553.9,3.91551276]
[1750422486976,0.36672353,2554.0,2553.9,3.91551276]
[1750422488011,0.36672353,2554.0,2553.8,3.9156758]
[1750422488211,0.36678016,2553.9,2553.8,3.9156758]
[1750422488803,0.36678016,2553.9,2553.8,3.95482896]
[1750422489315,0.36678016,2553.9,2553.8,4.78413172]
[1750422489720,0.36678016,2553.9,2553.8,3.9156758]
[1750422490216,0.36678016,2553.9,2553.7,3.91579883]
[1750422490420,0.36678016,2553.8,2553.7,3.91579883]
[1750422490627,0.36694203,2553.8,2553.7,3.91579883]
[1750422491510,0.7958,2554.2,2553.8,3.91565924]
[1750422491710,0.73388276,2554.1,2553.8,3.91565924]
[1750422491906,0.36694138,2554.0,2553.8,3.91565924]
[1750422492108,0.36694138,2553.9,2553.8,3.91565924]
[1750422492307,0.36694138,2553.9,2553.8,4.69880505]
[1750422492512,0.36721311,2553.9,2553.8,4.69880505]
[1750422492709,0.36721311,2553.9,2553.8,3.91565924]
[1750422494284,0.36722812,2553.9,2553.8,3.91565924]
[1750422494699,0.7958,2554.2,2553.9,3.91556378]
[1750422494896,0.95478672,2554.1,2554.0,3.91542678]
[1750422495519,0.95478672,2554.1,2553.9,3.91550795]
[1750422495689,0.73445132,2554.0,2553.8,3.91565216]
[1750422495884,0.36722566,2553.9,2553.8,3.91565216]
[1750422496085,0.7958,2554.2,2553.9,3.915577]
[1750422496287,0.9547942,2554.1,2553.9,3.915577]
[1750422496526,0.73445708,2554.0,2553.8,3.91564397]
[1750422496705,0.7958,2554.2,2553.8,3.91564397]
[1750422496706,0.36722854,2553.9,2553.8,3.91564397]
[1750422497036,0.36722854,2553.9,2553.7,3.91582295]
[1750422497190,0.36722854,2553.8,2553.7,3.91588675]
[1750422497389,0.36722854,2553.8,2553.7,4.77444586]
[1750422498335,0.36724717,2553.8,2553.7,4.77444586]
[1750422498518,0.36724728,2553.8,2553.7,4.77444586]
[1750422499128,4.71101479,2554.2,2553.8,3.91569485]
[1750422499335,0.95483662,2554.1,2553.8,3.91569485]
[1750422499627,0.7344899,2554.0,2553.8,3.91569485]
[1750422499812,0.36724495,2553.9,2553.8,3.91569485]
[1750422501733,0.367245,2553.9,2553.8,3.91569485]
[1750422502436,0.36726089,2553.9,2553.8,3.91569485]
[1750422502736,0.36726035,2553.9,2553.8,3.91569485]
[1750422503034,0.36726275,2553.9,2553.8,3.91569485]
[1750422503930,0.36726413,2553.9,2553.8,3.91569485]
[1750422504236,0.36726287,2553.9,2553.8,3.91569485]
[1750422504391,0.36726411,2553.9,2553.8,3.91569485]
[1750422504589,0.3672858,2553.9,2553.8,3.91569485]
[1750422506028,0.36728657,2553.9,2553.8,3.91569485]
[1750422506529,4.71092874,2554.2,2553.8,3.91569485]
[1750422507393,0.220368,2554.1,2553.8,3.91569485]
[1750422507594,0.8,2554.0,2553.7,3.91583322]
[1750422508604,0.8,2554.0,2553.8,3.91570684]
[1750422508810,0.8,2554.0,2553.7,3.91583322]
[1750422509742,0.8,2554.0,2553.6,4.66965737]
[1750422509743,0.36728769,2553.9,2553.6,4.66965737]
[1750422509951,0.8,2554.0,2553.3,0.7525]
[1750422509952,0.36728769,2553.8,2553.3,0.7525]
[1750422510098,0.36728769,2553.8,2552.6,4.30000151]
[1750422510099,0.36728769,2553.7,2552.9,0.7525]
[1750422510298,4.28337348,2553.6,2553.2,3.91663788]
[1750422510502,4.28337348,2553.6,2553.0,3.91686996]
[1750422510503,0.36731778,2553.5,2553.0,3.91684514]
[1750422510746,1.15531778,2553.4,2553.0,3.91684514]
[1750422510946,0.36731778,2553.3,2553.1,0.03916373]
[1750422511115,0.36731778,2553.2,2553.1,0.03916373]
[1750422511940,0.36731778,2553.2,2553.1,3.91680701]
[1750422512141,0.788,2553.6,2553.1,3.91680701]
[1750422512437,0.36686586,2553.5,2553.2,3.91656867]
[1750422512624,0.36686586,2553.4,2553.1,3.91673728]
[1750422512863,0.36686586,2553.3,2553.1,3.91673728]
[1750422513031,0.8,2553.4,2553.1,3.91673728]
[1750422513208,0.366849,2553.3,2553.1,3.91673728]
[1750422513409,4.70404068,2553.6,2553.1,3.91673728]
[1750422513608,4.70404068,2553.6,2553.2,3.91664539]
[1750422513845,0.36684883,2553.5,2553.2,3.91664539]
[1750422514055,0.36684883,2553.4,2553.2,3.91664539]
[1750422514210,0.36684883,2553.3,2553.2,3.91664539]
[1750422514550,3.91620966,2553.5,2553.1,3.91677459]
[1750422514845,0.36685082,2553.4,2553.1,3.91677459]
[1750422515140,4.70413117,2553.6,2553.1,3.91677459]
[1750422515640,4.282824,2553.5,2553.0,3.91687044]
[1750422515800,0.36662101,2553.4,2553.0,3.91687044]
[1750422516006,0.36662101,2553.4,2552.5,3.91757776]
[1750422516007,1.14432101,2553.3,2552.5,0.7705]
[1750422516345,4.2833312,2553.2,2552.7,3.91731787]
[1750422516552,0.36645499,2553.1,2552.8,3.91723962]
[1750422517119,3.91671019,2553.2,2552.8,3.91723962]
[1750422517319,0.36645611,2553.1,2552.8,3.91723962]
[1750422517651,4.69426744,2553.3,2552.9,3.91709288]
[1750422517864,0.8,2553.1,2552.9,3.91709288]
[1750422518021,0.8,2553.1,2552.9,3.91702594]
[1750422518221,0.8,2553.1,2553.0,3.91696043]
[1750422519822,0.8,2553.1,2553.0,4.73953486]
[1750422520021,0.8,2553.1,2553.0,4.70036691]
[1750422524868,3.91620342,2553.5,2553.1,3.9167701]
[1750422525359,0.36596733,2553.4,2553.1,3.9167701]
[1750422526066,0.36596733,2553.4,2553.0,3.91687589]
[1750422526270,3.91620342,2553.5,2553.0,3.91687589]
[1750422526464,0.36596655,2553.4,2553.0,3.91687589]
[1750422526829,3.91620342,2553.5,2553.0,3.91687589]
[1750422526830,0.8,2553.3,2553.0,3.91687589]
[1750422527126,0.8,2553.3,2553.0,4.7812483]
[1750422527780,0.8,2553.3,2553.1,3.91677277]
[1750422528072,3.91620342,2553.5,2553.1,3.91677277]
[1750422528281,0.36594014,2553.4,2553.1,3.95593684]
[1750422528567,4.71843347,2553.6,2553.1,3.95593684]
[1750422528765,0.36593579,2553.5,2553.2,3.91665135]
[1750422529066,4.71843347,2553.6,2553.2,3.91665135]
[1750422529280,0.36593474,2553.5,2553.2,3.91665135]
[1750422529572,0.36593474,2553.4,2553.1,3.91672175]
[1750422529775,3.91621158,2553.5,2552.9,3.91705203]
[1750422529776,3.91621158,2553.5,2553.0,3.91686632]
[1750422530079,0.36595101,2553.4,2553.1,3.91679426]
[1750422530582,0.36595101,2553.4,2553.0,3.91687378]
[1750422530965,3.91621158,2553.5,2553.0,3.91687378]
[1750422531166,0.36596819,2553.4,2553.0,3.91687378]
[1750422531570,4.2823365,2553.4,2552.9,3.91700134]
[1750422531879,0.8,2553.2,2552.9,3.91700134]
[1750422532467,0.8,2553.2,2553.0,3.91696008]
[1750422535480,0.8,2553.2,2552.8,0.8098]
[1750422535685,0.8,2553.2,2552.9,3.91703651]
[1750422536582,0.8,2553.2,2552.8,4.72697826]
[1750422536781,0.8,2553.2,2552.8,3.91717826]
[1750422536986,0.8,2553.2,2552.9,3.917092]
[1750422537161,0.8,2553.2,2553.0,3.91693795]
[1750422537480,0.8,2553.2,2553.1,3.91680701]
[1750422538783,1.16656921,2553.2,2553.1,3.91680701]
[1750422538960,1.16656921,2553.2,2553.1,4.78052019]
[1750422539145,0.8,2553.2,2553.1,4.78052019]
[1750422539699,1.16659225,2553.2,2553.1,4.78052019]
[1750422540783,1.16706011,2553.2,2553.1,0.86371318]
[1750422540984,1.16706011,2553.2,2553.0,3.91690597]
[1750422541151,0.36706512,2553.1,2553.0,3.91690597]
[1750422543669,0.36715737,2553.1,2553.0,3.91690597]
[1750422543991,0.36715744,2553.1,2553.0,3.91690597]
[1750422544291,3.91635342,2553.4,2553.0,4.7003075]
[1750422544588,3.91635959,2553.4,2553.0,3.91690597]
[1750422545050,0.73444418,2553.3,2553.0,3.91690597]
[1750422545253,0.73444418,2553.2,2552.9,3.91702866]
[1750422545457,0.36724888,2553.1,2553.0,3.91695711]
[1750422547591,0.36724848,2553.1,2553.0,3.91695711]
[1750422549061,0.36724848,2553.1,2553.0,4.7003732]
[1750422549457,0.36724848,2553.1,2553.0,4.73953772]
[1750422549994,0.7622,2553.5,2553.1,3.9167146]
[1750422550192,0.95487119,2553.4,2553.1,3.9167146]
[1750422550412,0.36725815,2553.3,2553.1,3.9166788]
[1750422550580,0.73452246,2553.2,2553.1,3.9166788]
[1750422550785,0.73452246,2553.2,2553.1,4.7000379]
[1750422551092,0.7622,2553.5,2553.1,4.7000379]
[1750422551393,0.95486937,2553.4,2553.1,3.9166788]
[1750422551597,0.73451461,2553.3,2553.1,3.9166788]
[1750422551781,0.73451461,2553.2,2553.1,3.9166788]
[1750422551987,0.73451432,2553.2,2553.1,3.9166788]
[1750422552293,0.36725724,2553.2,2553.1,3.9166788]
[1750422552492,0.3672572,2553.2,2553.1,3.9166788]
[1750422552699,0.36725754,2553.2,2553.0,3.91687479]
[1750422552860,0.36725754,2553.1,2553.0,4.78171669]
[1750422553200,0.36726591,2553.1,2553.0,4.78171669]
[1750422553397,0.36727169,2553.1,2553.0,4.78171669]
[1750422554105,0.3672738,2553.1,2553.0,4.78171669]
[1750422554714,3.91634705,2553.4,2553.0,4.78171669]
[1750422554915,0.73454755,2553.3,2553.0,3.91687479]
[1750422555117,0.36727371,2553.2,2553.0,3.91687479]
[1750422555283,0.36726995,2553.1,2553.0,3.91687479]
[1750422556207,0.36727404,2553.1,2553.0,3.91687479]
[1750422556897,0.36727759,2553.1,2553.0,3.91687479]
[1750422557223,0.36727436,2553.1,2553.0,3.91687479]
[1750422557422,0.36727435,2553.1,2553.0,3.91687479]
[1750422558999,0.36727448,2553.1,2553.0,3.91687479]
[1750422559499,0.36727448,2553.1,2553.0,3.95603949]
[1750422559725,0.36727448,2553.1,2553.0,4.82480424]
[1750422559926,10.7622,2553.5,2553.2,3.91665012]
[1750422560109,0.95488863,2553.4,2553.2,3.91665012]
[1750422560287,0.73452972,2553.3,2553.2,3.91665012]
[1750422560687,1.53452972,2553.3,2553.1,3.91671317]
[1750422560918,0.73452972,2553.2,2553.1,3.91671317]
[1750422561104,0.36726485,2553.2,2553.1,3.91671317]
[1750422561288,0.73452867,2553.2,2553.1,3.91671317]
[1750422561623,0.73452548,2553.2,2553.1,3.91671317]
[1750422562031,0.73452531,2553.2,2553.1,3.91671317]
[1750422562192,0.36726149,2553.2,2553.1,3.91671317]
[1750422562693,0.36725504,2553.2,2553.0,3.91687537]
[1750422562995,0.36725504,2553.1,2553.0,3.91687537]
[1750422563196,0.36725974,2553.1,2553.0,3.91687537]
[1750422563396,0.36725929,2553.1,2553.0,3.91687537]
[1750422564098,4.67848577,2553.5,2553.1,3.91678621]
[1750422564299,0.73451836,2553.4,2553.1,3.91678621]
[1750422564510,0.73451836,2553.3,2553.1,3.91678621]
[1750422564729,0.36725929,2553.2,2553.1,3.91678621]
[1750422565433,0.36725929,2553.2,2553.1,4.70015237]
[1750422565598,0.7622,2553.5,2553.2,3.91664717]
[1750422565799,0.95485853,2553.4,2553.2,3.91664717]
[1750422565999,1.16725317,2553.3,2553.1,3.91671896]
[1750422566197,0.36725071,2553.2,2553.1,3.91671896]
[1750422566899,0.36725071,2553.2,2553.1,5.48359612]
[1750422567290,0.36725071,2553.2,2553.1,5.52275879]
[1750422567493,0.8,2553.3,2553.2,3.91665361]
[1750422567690,1.5346023,2553.3,2553.2,3.91665361]
[1750422567890,1.5346022,2553.3,2553.2,3.91665361]
[1750422568118,1.5346021,2553.3,2553.2,3.91665361]
[1750422568522,1.53460202,2553.3,2553.2,3.91665361]
[1750422569652,0.36730847,2553.3,2553.2,3.91665361]
[1750422569853,0.36730847,2553.3,2553.2,3.95581605]
[1750422570604,0.36730847,2553.3,2553.2,3.91665361]
[1750422570798,0.7346209,2553.3,2553.2,3.91665361]
[1750422571198,0.36731045,2553.3,2553.2,3.91665361]
[1750422571435,0.3673104,2553.3,2553.2,3.91665361]
[1750422571826,0.36731039,2553.3,2553.2,3.91665361]
[1750422572536,0.36730903,2553.3,2553.2,3.91665361]
[1750422572735,0.367309,2553.3,2553.2,3.91665361]
[1750422573539,14.68377233,2553.7,2553.3,3.91648112]
[1750422573754,0.95497997,2553.6,2553.1,0.7796]
[1750422573951,1.75496109,2553.5,2553.3,3.91640405]
[1750422574131,0.36728098,2553.4,2553.3,3.91640405]
[1750422574308,0.36727431,2553.4,2553.3,3.91640405]
[1750422574499,0.36727431,2553.4,2553.3,4.77766101]
[1750422575825,0.8,2553.5,2553.3,4.77766101]
[1750422576030,0.36726365,2553.4,2553.3,4.77766101]
[1750422576410,0.36726365,2553.4,2553.3,0.86125696]
[1750422577041,0.36728322,2553.4,2553.3,0.86125696]
[1750422577242,0.36728469,2553.4,2553.3,0.86125696]
[1750422578747,0.36729263,2553.4,2553.3,0.86125696]
[1750422579841,0.36729263,2553.4,2553.3,4.77775717]
[1750422580344,0.36729263,2553.4,2553.3,0.86125696]
[1750422581434,0.36729263,2553.4,2553.1,4.69631538]
[1750422581637,0.36729263,2553.3,2553.1,4.69631538]
[1750422581842,0.36725936,2553.2,2553.1,4.69631538]
[1750422582957,3.91604526,2553.6,2553.1,4.69631538]
[1750422582958,3.91604526,2553.6,2553.2,3.91662675]
[1750422583115,0.58761368,2553.5,2553.2,3.91662675]
[1750422583454,0.36725792,2553.4,2553.2,3.91662675]
[1750422583750,0.36725792,2553.3,2553.2,3.91662675]
[1750422584842,0.36726018,2553.3,2553.1,4.69632709]
[1750422585142,0.36726018,2553.2,2553.1,5.5576497]
[1750422585343,0.36726022,2553.2,2553.1,0.86132261]
[1750422585551,0.36727761,2553.2,2553.0,3.91689404]
[1750422585720,0.36727761,2553.1,2553.0,3.91689404]
[1750422585929,0.36729451,2553.1,2553.0,3.91689404]
[1750422586623,0.7968,2553.4,2553.1,3.91676419]
[1750422586824,0.3672872,2553.3,2553.1,3.91676419]
[1750422587038,0.3672872,2553.2,2553.1,3.91676419]
[1750422587562,0.36729452,2553.2,2553.1,3.91676419]
[1750422588872,0.7968,2553.4,2553.2,3.91659987]
[1750422589062,0.36732412,2553.3,2553.2,3.91659987]
[1750422590150,0.8191,2553.6,2553.2,3.91659987]
[1750422590339,2.06120102,2553.5,2553.3,3.91648315]
[1750422590534,0.73462506,2553.4,2553.3,3.91648315]
[1750422590764,0.73462507,2553.4,2553.3,3.91648315]
[1750422591174,1.53462353,2553.4,2553.3,3.91648315]
[1750422591670,0.8,2553.4,2553.2,3.91655997]
[1750422591837,0.3673211,2553.3,2553.2,3.91655997]
[1750422592038,0.8,2553.4,2553.3,3.91650021]
[1750422592276,1.5346293,2553.4,2553.3,3.91650021]
[1750422592672,1.5346293,2553.4,2553.2,3.91656423]
[1750422592880,0.36731165,2553.3,2553.2,3.91656423]
[1750422593046,0.36731243,2553.3,2553.2,3.91656423]
[1750422593245,0.8,2553.4,2553.2,3.91656423]
[1750422593445,0.36731239,2553.3,2553.2,3.91656423]
[1750422593977,0.8,2553.4,2553.3,3.91650021]
[1750422594178,1.53462721,2553.4,2553.3,3.91650021]
[1750422594683,1.53465102,2553.4,2553.3,3.91650021]
[1750422595060,1.16732551,2553.4,2553.3,3.91650021]
[1750422595273,1.53464686,2553.4,2553.3,3.91650021]
[1750422595588,1.16732551,2553.4,2553.3,3.91650021]
[1750422595791,1.1673055,2553.4,2553.3,3.91650021]
[1750422595975,1.1673055,2553.4,2553.3,3.95566101]
[1750422596641,1.1673055,2553.4,2553.3,4.82275055]
[1750422597560,1.16725511,2553.4,2553.3,4.82275055]
[1750422598116,1.16725511,2553.4,2553.3,4.78358975]
[1750422598313,0.36725511,2553.4,2553.3,4.78358975]
[1750422599330,0.7963,2553.8,2553.5,3.91613589]
[1750422599522,0.95462204,2553.7,2553.5,3.91613589]
[1750422599718,0.95462204,2553.6,2553.5,3.91613589]
[1750422599886,0.73431,2553.6,2553.5,3.91613589]
[1750422600082,0.5874342,2553.6,2553.5,3.91613589]
[1750422600394,0.95437204,2553.6,2553.3,3.91636968]
[1750422600614,0.36706556,2553.5,2553.0,0.03916068]
[1750422600917,0.36706556,2553.4,2553.3,3.91635905]
[1750422602183,0.36683309,2553.4,2553.3,3.91635905]
[1750422602693,0.36691288,2553.4,2553.3,3.91635905]
[1750422603017,21.47015774,2553.8,2553.3,3.91635905]
[1750422603240,0.58705789,2553.7,2553.3,3.91635905]
[1750422603399,21.47015774,2553.8,2553.3,3.91635905]
[1750422603400,0.58705789,2553.6,2553.3,3.91635905]
[1750422603739,0.36691535,2553.5,2553.3,3.91635905]
[1750422603899,0.36683297,2553.4,2553.3,3.91635905]
[1750422605943,21.47013558,2553.8,2553.3,3.91635905]
[1750422606236,0.5866597,2553.7,2553.3,3.91635905]
[1750422606440,0.5866597,2553.6,2553.3,3.91635905]
[1750422606739,0.36666215,2553.5,2553.3,3.91635905]
[1750422606934,0.36666215,2553.4,2553.3,3.91635905]
[1750422608917,0.36654086,2553.4,2553.3,3.91635905]
[1750422609416,0.36653601,2553.4,2553.3,3.91635905]
[1750422610116,0.36655756,2553.4,2553.3,3.91635905]
[1750422611152,0.36654774,2553.4,2553.3,3.91635905]
[1750422611504,0.36649293,2553.4,2553.3,3.91635905]
[1750422611705,4.71209726,2553.8,2553.4,3.91632809]
[1750422611904,15.97344705,2553.7,2553.3,3.91640666]
[1750422612105,0.58634644,2553.6,2553.3,3.91640666]
[1750422612306,0.3664636,2553.5,2553.3,3.91640666]
[1750422612506,0.36647758,2553.4,2553.3,3.91640666]
[1750422612706,15.38710061,2553.7,2553.3,3.91640666]
[1750422612921,1.36064718,2553.6,2553.3,3.91640666]
[1750422613142,0.36648223,2553.5,2553.3,3.91640666]
[1750422613344,0.36648223,2553.4,2553.3,3.91640666]
[1750422614162,0.36650569,2553.4,2553.3,3.91640666]
[1750422614564,0.36649973,2553.4,2553.3,3.91640666]
[1750422614867,0.36649981,2553.4,2553.3,3.91640666]
[1750422616964,10.0,2553.7,2553.4,3.91633621]
[1750422617143,0.58647628,2553.6,2553.4,3.91633621]
[1750422617332,0.36654914,2553.5,2553.4,3.91633621]
[1750422617533,0.36661295,2553.5,2553.4,3.91633621]
[1750422618068,0.73324491,2553.5,2553.4,3.91633621]
[1750422618581,0.73326154,2553.5,2553.4,3.91633621]
[1750422619080,0.36664777,2553.5,2553.4,3.91633621]
[1750422619247,0.36666163,2553.5,2553.4,3.91633621]
[1750422619547,0.73332242,2553.5,2553.4,3.91633621]
[1750422620264,10.0,2553.7,2553.4,3.91633621]
[1750422620466,0.95332526,2553.6,2553.5,3.91619345]
[1750422620641,0.95332529,2553.6,2553.5,3.91619345]
[1750422621047,0.21999832,2553.6,2553.5,3.91619345]
[1750422621249,0.95330153,2553.6,2553.5,3.91619345]
[1750422621868,0.95330153,2553.6,2553.4,3.91627177]
[1750422622073,0.73330321,2553.5,2553.4,3.91627177]
[1750422622463,0.73322027,2553.5,2553.4,3.91627177]
[1750422622955,0.36656863,2553.5,2553.4,3.91627177]
[1750422623168,10.0,2553.7,2553.4,3.91627177]
[1750422623369,0.58647754,2553.6,2553.4,3.91627177]
[1750422623656,0.36654837,2553.5,2553.4,3.91627177]
[1750422623856,0.36647877,2553.5,2553.4,3.91627177]
[1750422624302,0.36642429,2553.5,2553.4,3.91627177]
[1750422624662,0.36642429,2553.5,2553.4,4.8174761]
[1750422625093,0.7963,2553.8,2553.5,3.91613801]
[1750422625283,0.58602154,2553.7,2553.5,3.91613801]
[1750422625481,0.58602154,2553.6,2553.5,3.91613801]
[1750422625793,0.58603349,2553.6,2553.4,3.91626713]
[1750422625995,0.36626346,2553.5,2553.4,3.91626713]
[1750422626159,0.36628644,2553.5,2553.4,3.91626713]
[1750422627879,0.36628644,2553.5,2553.3,3.91640399]
[1750422628086,0.36628644,2553.4,2553.3,3.91640399]
[1750422628300,0.36627482,2553.4,2553.3,3.91640399]
[1750422629108,0.36627319,2553.4,2553.3,3.91640399]
[1750422629312,0.36627319,2553.4,2553.3,4.77847223]
[1750422629617,0.36627319,2553.4,2553.2,3.91663717]
[1750422629921,0.36608562,2553.3,2553.2,3.91663717]
[1750422630212,13.91596106,2553.7,2553.3,3.91647677]
[1750422630410,0.58576117,2553.6,2553.3,3.91647677]
[1750422630710,0.36610073,2553.5,2553.4,3.91626693]
[1750422631915,0.36606897,2553.5,2553.3,3.91641765]
[1750422632216,0.36605744,2553.4,2553.3,3.91641765]
[1750422632408,0.36605719,2553.4,2553.3,3.91641765]
[1750422632712,0.36605461,2553.4,2553.3,3.91641765]
[1750422632885,0.36605461,2553.4,2553.3,5.28791747]
[1750422633601,0.7963,2553.8,2553.5,3.91611561]
[1750422633796,0.36601968,2553.7,2553.5,3.91611561]
[1750422634101,0.36601968,2553.6,2553.5,3.91611561]
[1750422634728,0.36604241,2553.6,2553.5,3.91611561]
[1750422635229,0.7963,2553.8,2553.5,3.91611561]
[1750422635421,0.58600836,2553.7,2553.5,3.91611561]
[1750422635595,0.36625136,2553.6,2553.5,3.91611561]
[1750422636632,0.36612246,2553.6,2553.5,3.91611561]
[1750422637405,0.36612969,2553.6,2553.5,3.91611561]
[1750422637723,0.36614346,2553.6,2553.5,3.91611561]
[1750422637920,0.36614346,2553.6,2553.5,4.77480182]
[1750422638500,14.71783903,2554.0,2553.6,3.91598078]
[1750422638718,0.58577406,2553.9,2553.6,3.91598078]
[1750422638921,0.58577406,2553.8,2553.6,3.91598078]
[1750422639126,0.36610879,2553.7,2553.6,3.91598078]
[1750422639436,0.36610879,2553.7,2553.4,3.91629047]
[1750422639437,0.36600092,2553.7,2553.4,3.91628635]
[1750422639602,0.36595611,2553.6,2553.0,0.8287]
[1750422639934,0.36595611,2553.5,2553.4,3.91634683]
[1750422640543,0.36591471,2553.5,2553.4,3.91634683]
[1750422641243,0.8306,2553.7,2553.3,3.91638338]
[1750422641445,0.73166938,2553.6,2553.3,3.91638338]
[1750422641649,0.36583469,2553.5,2553.3,3.91638338]
[1750422641849,0.36583469,2553.4,2553.3,3.91638338]
[1750422642925,0.36584244,2553.4,2553.3,3.91638338]
[1750422643126,0.8306,2553.7,2553.2,3.91658293]
[1750422643330,0.7316684,2553.6,2553.4,3.91633649]
[1750422643530,0.73167078,2553.5,2553.4,3.91633649]
[1750422643750,0.73167582,2553.5,2553.4,3.91633649]
[1750422643953,0.73184027,2553.5,2553.4,3.91633649]
[1750422644115,0.7318456,2553.5,2553.4,3.91633649]
[1750422644316,0.73186888,2553.5,2553.4,3.91633649]
[1750422644551,0.73187601,2553.5,2553.4,3.91633649]
[1750422645252,0.36611464,2553.5,2553.4,3.91633649]
[1750422645551,0.73224267,2553.5,2553.4,3.91633649]
[1750422645856,0.73226489,2553.5,2553.4,3.91633649]
[1750422646434,0.7323192,2553.5,2553.3,3.91640606]
[1750422646634,0.7323192,2553.4,2553.3,3.91640606]
[1750422647036,0.73233702,2553.4,2553.3,3.91640606]
[1750422647537,0.73265572,2553.4,2553.3,3.91640606]
[1750422647858,0.73265572,2553.4,2553.1,4.39136756]
[1750422648057,0.73265572,2553.4,2553.0,0.8287]
[1750422648058,0.36618107,2553.3,2552.6,10.7879]
[1750422648267,0.7782,2553.4,2553.1,3.91665451]
[1750422648574,0.36647307,2553.3,2553.2,3.91659339]
[1750422649140,0.73298264,2553.3,2553.2,3.91659339]
[1750422649339,0.73298129,2553.3,2553.2,3.91659339]
[1750422650176,0.36649092,2553.3,2553.2,3.91659339]
[1750422650860,0.8056,2553.6,2553.4,3.91634519]
[1750422653076,0.7326586,2553.7,2553.6,3.9160401]
[1750422653239,0.73261938,2553.7,2553.6,3.9160401]
[1750422653438,0.36633668,2553.7,2553.6,5.2492941]
[1750422653844,0.8201,2554.1,2553.9,3.91555379]
[1750422654057,0.95199174,2554.0,2553.9,3.91555379]
[1750422654268,0.95200292,2554.0,2553.9,3.91555379]
[1750422654465,0.95200292,2554.0,2553.6,3.91596882]
[1750422654668,0.73234391,2553.9,2553.6,3.91595426]
[1750422654980,0.73233512,2553.8,2553.6,3.91595426]
[1750422655141,0.36615067,2553.7,2553.6,3.91595426]
[1750422655347,0.36615067,2553.7,2553.5,3.91610122]
[1750422655566,0.36615067,2553.6,2553.5,3.91610122]
[1750422656781,0.73225663,2553.6,2553.5,3.91610122]
[1750422657169,0.73227736,2553.6,2553.5,3.91610122]
[1750422657349,0.73228726,2553.6,2553.5,3.91610122]
[1750422657545,0.73230228,2553.6,2553.5,3.91610122]
[1750422657775,0.73237664,2553.6,2553.5,3.91610122]
[1750422658754,0.73237664,2553.6,2553.4,3.91631051]
[1750422658953,0.7937,2553.8,2553.4,3.91631051]
[1750422659254,5.11938381,2553.7,2553.2,3.9165944]
[1750422659450,0.73256618,2553.6,2553.2,3.9165944]
[1750422659650,0.73256618,2553.5,2553.2,3.9165944]
[1750422659978,4.38681763,2553.7,2553.2,3.9165944]
[1750422659979,0.73256618,2553.4,2553.3,3.91650021]
[1750422660481,0.7325335,2553.4,2553.3,3.91650021]
[1750422660952,0.36626675,2553.4,2553.3,3.91650021]
[1750422661353,0.7937,2553.8,2553.4,3.91623028]
[1750422661555,0.73215964,2553.7,2553.4,3.91623028]
[1750422661860,0.73216783,2553.6,2553.4,3.91623028]
[1750422662069,0.73216783,2553.5,2553.4,3.91623028]
[1750422663412,0.36612831,2553.5,2553.4,3.91623028]
[1750422663614,0.73225891,2553.5,2553.4,3.91623028]
[1750422663797,0.73224413,2553.5,2553.4,3.91623028]
[1750422663989,0.71973413,2553.5,2553.4,3.91623028]
[1750422664396,0.71973413,2553.5,2553.3,3.9164062]
[1750422664620,0.36611318,2553.4,2553.2,3.91656036]
[1750422664903,0.808,2553.5,2553.2,4.78009979]
[1750422665104,0.36601427,2553.4,2553.2,3.91656036]
[1750422665308,0.808,2553.5,2553.3,3.9164857]
[1750422665519,0.36589879,2553.4,2553.3,3.9164857]
[1750422665820,0.3658684,2553.4,2553.3,3.91650021]
[1750422666368,0.36584916,2553.4,2553.3,3.91650021]
[1750422666596,0.36584916,2553.4,2553.2,3.91659379]
[1750422666796,0.808,2553.5,2552.9,0.81796381]
[1750422667024,0.3658745,2553.4,2553.2,3.91659135]
[1750422667204,0.808,2553.5,2553.2,3.91659135]
[1750422667509,0.36586341,2553.4,2553.2,3.91659135]
[1750422667684,0.808,2553.5,2553.2,3.91659135]
[1750422667890,0.3658738,2553.4,2553.2,3.91659135]
[1750422668094,0.808,2553.5,2553.3,3.91649747]
[1750422668275,0.36587405,2553.4,2553.3,3.91649747]
[1750422669110,0.36592852,2553.4,2553.3,3.91649747]
[1750422669297,0.36592852,2553.4,2553.2,3.91657942]
[1750422669613,0.808,2553.5,2553.2,3.91657942]
[1750422669810,0.36599768,2553.4,2553.2,3.91657942]
[1750422669996,0.808,2553.5,2553.2,3.91657942]
[1750422670199,0.36597004,2553.4,2553.1,3.91676174]
[1750422670396,0.808,2553.5,2553.2,3.91659183]
[1750422670604,0.36595181,2553.4,2553.2,3.91659183]
[1750422670905,0.36589375,2553.3,2552.2,7.15959816]
[1750422671121,7.89167321,2553.2,2552.7,3.91733398]
[1750422671287,0.36583173,2553.1,2552.9,3.91704868]
[1750422671616,3.91648073,2553.4,2552.9,3.91704868]
[1750422671912,3.91648073,2553.4,2552.8,3.91723651]
[1750422671913,0.36562406,2553.3,2553.0,0.039171]
[1750422672085,10.0,2553.5,2553.1,3.91674209]
[1750422672086,0.36564257,2553.2,2553.1,3.91674209]
[1750422672711,0.7863,2553.6,2553.2,3.91654686]
[1750422672917,0.36560271,2553.5,2553.2,3.91654686]
[1750422673215,0.36558154,2553.4,2553.2,3.91654686]
[1750422673435,0.36558154,2553.3,2553.1,3.91673236]
[1750422673732,10.0,2553.5,2553.1,3.91673236]
[1750422674030,0.36557979,2553.4,2553.1,3.91673236]
[1750422674333,0.36558067,2553.3,2553.1,3.91673236]
[1750422674493,14.70242714,2553.6,2553.1,3.91673236]
[1750422674693,3.9162185,2553.5,2553.1,3.91673236]
[1750422674925,0.36569471,2553.4,2553.0,4.72208827]
[1750422675233,0.3656544,2553.3,2553.0,4.72208827]
[1750422675436,3.9162185,2553.5,2553.1,3.91679785]
[1750422675619,0.36565084,2553.4,2553.1,3.91679785]